Workbook

Sheet 9-14, 23-28.01.2023
A1: Школа | B1: МБОУ "Гимназия 155 с татарским языком обучения" | E1: Отд./корп | I1: День | J1: 2023-05-10
A3: Прием пищи | B3: Раздел | C3: № рец. | D3: Блюдо | E3: Выход, г | F3: Цена | G3: Калорийность | H3: Белки | I3: Жиры | J3: Углеводы
A4: Завтрак | B4: ='[1]08-13.05,22-27.05'!B20 -> гор.блюдо | C4: ='[1]08-13.05,22-27.05'!C20 -> ТТК 2022 г | D4: ='[1]08-13.05,22-27.05'!D20 -> Бифштекс рубленный по-домашнему | E4: ='[1]08-13.05,22-27.05'!E20 -> 90 | G4: ='[1]08-13.05,22-27.05'!G20 -> 162.00 | H4: ='[1]08-13.05,22-27.05'!H20 -> 9.40 | I4: ='[1]08-13.05,22-27.05'!I20 -> 10.20 | J4: ='[1]08-13.05,22-27.05'!J20 -> 8.36
B5: ='[1]08-13.05,22-27.05'!B21 -> гор.блюдо | C5: ='[1]08-13.05,22-27.05'!C21 -> № 202/2015 г | D5: ='[1]08-13.05,22-27.05'!D21 -> Каша гречневая рассыпчатая | E5: ='[1]08-13.05,22-27.05'!E21 -> 150 | G5: ='[1]08-13.05,22-27.05'!G21 -> 242.00 | H5: ='[1]08-13.05,22-27.05'!H21 -> 6.62 | I5: ='[1]08-13.05,22-27.05'!I21 -> 5.39 | J5: ='[1]08-13.05,22-27.05'!J21 -> 41.87
B6: ='[1]08-13.05,22-27.05'!B22 -> гор.напиток | C6: ='[1]08-13.05,22-27.05'!C22 -> №348/2015 | D6: ='[1]08-13.05,22-27.05'!D22 -> Чай с сахаром, лимоном | E6: ='[1]08-13.05,22-27.05'!E22 -> 180/75 | G6: ='[1]08-13.05,22-27.05'!G22 -> 37.00 | H6: ='[1]08-13.05,22-27.05'!H22 -> 0.01 | I6: ='[1]08-13.05,22-27.05'!I22 -> 0.00 | J6: ='[1]08-13.05,22-27.05'!J22 -> 9.16
B7: ='[1]08-13.05,22-27.05'!B23 -> хлеб | D7: ='[1]08-13.05,22-27.05'!D23 -> Хлеб ржано-пшеничный | E7: 15 | G7: 33.00 | H7: 0.75 | I7: 0.15 | J7: 6.75
B8: ='[1]08-13.05,22-27.05'!B24 -> хлеб | D8: хлеб пшеничный | E8: 15 | G8: 35.00 | H8: 1.14 | I8: 0.12 | J8: 7.38
C9: ='[1]08-13.05,22-27.05'!C25 -> ТТК 2022 г | D9: ='[1]08-13.05,22-27.05'!D25 -> Салат из свежих огурцов | E9: ='[1]08-13.05,22-27.05'!E25 -> 60 | G9: ='[1]08-13.05,22-27.05'!G25 -> 39.00 | H9: ='[1]08-13.05,22-27.05'!H25 -> 0.39 | I9: ='[1]08-13.05,22-27.05'!I25 -> 3.65 | J9: ='[1]08-13.05,22-27.05'!J25 -> 1.08
A13: ИТОГО | F13: 62.10
